[Event "Titled Tuesday Blitz March 22 Late 2022"]
[White "Kashefi, Amir Hosein"]
[Black "Rolfe, Warrick"]
[WhiteFideId "12557935"]
[BlackFideId "2603802"]
[WhiteElo "2107"]
[BlackElo "2553"]
[Result "0-1"]
[Round "04"]
[TimeControl "180+1"]
[Date "2022.03.22"]
[WhiteClock "0:00:01"]
[BlackClock "0:00:38"]

1. d4 {[%clk 0:02:55]}  Nf6 {[%clk 0:02:59]} 2. Nf3 {[%clk 0:02:53]}  g6 {[%clk 0:02:59]} 3. g3 {[%clk 0:02:48]}  Bg7 {[%clk 0:03:00]} 4. Bg2 {[%clk 0:02:48]}  O-O {[%clk 0:03:01]} 5. O-O {[%clk 0:02:46]}  d6 {[%clk 0:03:02]} 6. b3 {[%clk 0:02:39]}  Nbd7 {[%clk 0:03:03]} 7. Bb2 {[%clk 0:02:36]}  e5 {[%clk 0:03:04]} 8. dxe5 {[%clk 0:02:31]}  Ng4 {[%clk 0:03:04]} 9. Nbd2 {[%clk 0:02:24]}  Ngxe5 {[%clk 0:03:03]} 10. Nxe5 {[%clk 0:02:23]}  Nxe5 {[%clk 0:03:04]} 11. Qc1 {[%clk 0:02:22]}  Bg4 {[%clk 0:02:57]} 12. Nf3 {[%clk 0:02:14]}  Nxf3+ {[%clk 0:02:54]} 13. Bxf3 {[%clk 0:02:15]}  Bxf3 {[%clk 0:02:51]} 14. exf3 {[%clk 0:02:05]}  Re8 {[%clk 0:02:45]} 15. c4 {[%clk 0:01:59]}  Re2 {[%clk 0:02:34]} 16. Bxg7 {[%clk 0:01:57]}  Kxg7 {[%clk 0:02:35]} 17. Re1 {[%clk 0:01:57]}  Rxe1+ {[%clk 0:02:17]} 18. Qxe1 {[%clk 0:01:55]}  Qf6 {[%clk 0:02:18]} 19. Kg2 {[%clk 0:01:55]}  Kf8 {[%clk 0:02:10]} 20. Rd1 {[%clk 0:01:49]}  Re8 {[%clk 0:02:07]} 21. Qd2 {[%clk 0:01:48]}  Qe5 {[%clk 0:02:02]} 22. Qc1 {[%clk 0:01:38]}  b6 {[%clk 0:01:59]} 23. Rd3 {[%clk 0:01:36]}  Qa5 {[%clk 0:01:51]} 24. Qb2 {[%clk 0:01:28]}  Kg8 {[%clk 0:01:47]} 25. h4 {[%clk 0:01:20]}  Qe5 {[%clk 0:01:45]} 26. Qc2 {[%clk 0:01:12]}  Qf5 {[%clk 0:01:43]} 27. Qd2 {[%clk 0:01:08]}  a5 {[%clk 0:01:42]} 28. Rd5 {[%clk 0:01:05]}  Qe6 {[%clk 0:01:39]} 29. h5 {[%clk 0:00:59]}  Qe1 {[%clk 0:01:37]} 30. Qd4 {[%clk 0:00:52]}  Re5 {[%clk 0:01:25]} 31. hxg6 {[%clk 0:00:35]}  hxg6 {[%clk 0:01:23]} 32. Rxe5 {[%clk 0:00:28]}  Qxe5 {[%clk 0:01:24]} 33. Qg4 {[%clk 0:00:20]}  Kg7 {[%clk 0:01:22]} 34. Qd7 {[%clk 0:00:19]}  Qc5 {[%clk 0:01:20]} 35. Qg4 {[%clk 0:00:18]}  d5 {[%clk 0:01:13]} 36. cxd5 {[%clk 0:00:18]}  Qxd5 {[%clk 0:01:14]} 37. Qf4 {[%clk 0:00:18]}  Qc5 {[%clk 0:01:12]} 38. Qe4 {[%clk 0:00:17]}  b5 {[%clk 0:01:09]} 39. Qe1 {[%clk 0:00:14]}  a4 {[%clk 0:01:05]} 40. Qe4 {[%clk 0:00:12]}  axb3 {[%clk 0:01:03]} 41. axb3 {[%clk 0:00:13]}  b4 {[%clk 0:01:03]} 42. f4 {[%clk 0:00:08]}  c6 {[%clk 0:00:55]} 43. Qd3 {[%clk 0:00:02]}  Qc3 {[%clk 0:00:49]} 44. Qd1 {[%clk 0:00:02]}  c5 {[%clk 0:00:44]} 45. Qd5 {[%clk 0:00:01]}  c4 {[%clk 0:00:40]} 46. bxc4 {[%clk 0:00:01]}  b3 {[%clk 0:00:41]} 47. Qb5 {[%clk 0:00:02]}  b2 {[%clk 0:00:40]} 48. c5 {[%clk 0:00:01]}  Qc2 {[%clk 0:00:39]} 49. c6 {[%clk 0:00:01]}  Qe4+ {[%clk 0:00:38]} 0-1


[Site "https://www.chess.com"]

[Event "Titled Tuesday Blitz March 22 Late 2022"]
[White "Kollars, Dmitrij"]
[Black "Kozin, Yuri"]
[WhiteFideId "12909572"]
[BlackFideId "4129920"]
[WhiteElo "2584"]
[BlackElo "2545"]
[Result "1-0"]
[Round "04"]
[TimeControl "180+1"]
[Date "2022.03.22"]
[WhiteClock "0:00:15"]
[BlackClock "0:00:01"]

1. c4 {[%clk 0:03:00]}  c5 {[%clk 0:03:00]} 2. g3 {[%clk 0:02:58]}  Nf6 {[%clk 0:03:00]} 3. Bg2 {[%clk 0:02:59]}  e6 {[%clk 0:03:00]} 4. Nf3 {[%clk 0:02:58]}  Be7 {[%clk 0:03:01]} 5. O-O {[%clk 0:02:58]}  O-O {[%clk 0:03:01]} 6. d4 {[%clk 0:02:59]}  cxd4 {[%clk 0:03:02]} 7. Nxd4 {[%clk 0:03:00]}  d6 {[%clk 0:03:03]} 8. Nc3 {[%clk 0:02:59]}  a6 {[%clk 0:03:04]} 9. b3 {[%clk 0:02:53]}  Qc7 {[%clk 0:03:04]} 10. Bb2 {[%clk 0:02:48]}  Nbd7 {[%clk 0:03:04]} 11. a4 {[%clk 0:02:46]}  Ne5 {[%clk 0:03:04]} 12. a5 {[%clk 0:02:44]}  Bd7 {[%clk 0:03:03]} 13. Qd2 {[%clk 0:02:44]}  Rad8 {[%clk 0:02:55]} 14. Na4 {[%clk 0:02:42]}  Bxa4 {[%clk 0:02:37]} 15. Rxa4 {[%clk 0:02:40]}  Nc6 {[%clk 0:02:38]} 16. Rd1 {[%clk 0:02:31]}  Nxd4 {[%clk 0:02:31]} 17. Bxd4 {[%clk 0:02:29]}  Nd7 {[%clk 0:02:22]} 18. Ra2 {[%clk 0:02:24]}  Bf6 {[%clk 0:02:16]} 19. Be3 {[%clk 0:02:04]}  Be7 {[%clk 0:02:01]} 20. Qb4 {[%clk 0:01:53]}  Rb8 {[%clk 0:01:55]} 21. Rad2 {[%clk 0:01:45]}  Rfe8 {[%clk 0:01:51]} 22. Bf4 {[%clk 0:01:40]}  e5 {[%clk 0:01:39]} 23. Be3 {[%clk 0:01:39]}  d5 {[%clk 0:01:37]} 24. Bb6 {[%clk 0:01:21]}  Nxb6 {[%clk 0:01:20]} 25. axb6 {[%clk 0:01:20]}  Qd7 {[%clk 0:01:02]} 26. Qa5 {[%clk 0:01:16]}  d4 {[%clk 0:01:00]} 27. Qxe5 {[%clk 0:01:14]}  Bf6 {[%clk 0:01:00]} 28. Qc7 {[%clk 0:01:01]}  Qe6 {[%clk 0:00:45]} 29. Bxb7 {[%clk 0:00:56]}  Be5 {[%clk 0:00:45]} 30. Qc6 {[%clk 0:00:47]}  Qf5 {[%clk 0:00:27]} 31. c5 {[%clk 0:00:39]}  a5 {[%clk 0:00:22]} 32. Qf3 {[%clk 0:00:34]}  Qe6 {[%clk 0:00:19]} 33. Bd5 {[%clk 0:00:32]}  Qe7 {[%clk 0:00:18]} 34. b7 {[%clk 0:00:26]}  Bf6 {[%clk 0:00:17]} 35. c6 {[%clk 0:00:26]}  Qd6 {[%clk 0:00:17]} 36. e3 {[%clk 0:00:23]}  Re5 {[%clk 0:00:15]} 37. Bc4 {[%clk 0:00:21]}  Rc5 {[%clk 0:00:13]} 38. Rxd4 {[%clk 0:00:20]}  Bxd4 {[%clk 0:00:12]} 39. Qxf7+ {[%clk 0:00:21]}  Kh8 {[%clk 0:00:12]} 40. Rxd4 {[%clk 0:00:22]}  Qxc6 {[%clk 0:00:11]} 41. Rd7 {[%clk 0:00:19]}  Qg6 {[%clk 0:00:09]} 42. Qe7 {[%clk 0:00:15]}  Qf6 {[%clk 0:00:01]} 43. Qxc5 {[%clk 0:00:15]} 1-0


[Site "https://www.chess.com"]

[Event "Titled Tuesday Blitz March 22 Late 2022"]
[White "Koutlas, Nikolaos"]
[Black "Sanal, Vahap"]
[WhiteFideId "25827138"]
[BlackFideId "6300545"]
[WhiteElo "1610"]
[BlackElo "2603"]
[Result "0-1"]
[Round "04"]
[TimeControl "180+1"]
[Date "2022.03.22"]
[WhiteClock "0:00:05"]
[BlackClock "0:02:12"]

1. e4 {[%clk 0:03:00]}  d6 {[%clk 0:02:57]} 2. d4 {[%clk 0:02:59]}  f6 {[%clk 0:02:58]} 3. Bc4 {[%clk 0:02:55]}  e6 {[%clk 0:02:58]} 4. f4 {[%clk 0:02:54]}  d5 {[%clk 0:02:57]} 5. Bd3 {[%clk 0:02:49]}  f5 {[%clk 0:02:51]} 6. exd5 {[%clk 0:02:46]}  exd5 {[%clk 0:02:51]} 7. Nf3 {[%clk 0:02:45]}  Nf6 {[%clk 0:02:52]} 8. O-O {[%clk 0:02:45]}  Be7 {[%clk 0:02:51]} 9. c4 {[%clk 0:02:44]}  c6 {[%clk 0:02:51]} 10. Nc3 {[%clk 0:02:43]}  O-O {[%clk 0:02:50]} 11. Ne5 {[%clk 0:02:43]}  Be6 {[%clk 0:02:45]} 12. c5 {[%clk 0:02:39]}  Ne4 {[%clk 0:02:44]} 13. Be3 {[%clk 0:02:32]}  Nd7 {[%clk 0:02:43]} 14. Rc1 {[%clk 0:02:14]}  Nxe5 {[%clk 0:02:38]} 15. fxe5 {[%clk 0:02:11]}  Bg5 {[%clk 0:02:38]} 16. Qe2 {[%clk 0:02:00]}  h6 {[%clk 0:02:31]} 17. Bf4 {[%clk 0:01:40]}  Qa5 {[%clk 0:02:19]} 18. a3 {[%clk 0:01:10]}  Rae8 {[%clk 0:02:18]} 19. Bxg5 {[%clk 0:01:09]}  hxg5 {[%clk 0:02:16]} 20. b4 {[%clk 0:00:53]}  Qd8 {[%clk 0:02:16]} 21. a4 {[%clk 0:00:28]}  g4 {[%clk 0:02:15]} 22. Nd1 {[%clk 0:00:20]}  Qg5 {[%clk 0:02:15]} 23. Ne3 {[%clk 0:00:14]}  f4 {[%clk 0:02:14]} 24. Nc4 {[%clk 0:00:12]}  f3 {[%clk 0:02:12]} 25. Qc2 {[%clk 0:00:05]}  f2+ {[%clk 0:02:12]} 26. Kh1 {[%clk 0:00:05]}  Ng3+ {[%clk 0:02:12]} 0-1


[Site "https://www.chess.com"]

[Event "Titled Tuesday Blitz March 22 Late 2022"]
[White "Krishnan, Varun"]
[Black "Rustemov, Alexander"]
[WhiteFideId "5054508"]
[BlackFideId "4119002"]
[WhiteElo "2604"]
[BlackElo "2790"]
[Result "0-1"]
[Round "04"]
[TimeControl "180+1"]
[Date "2022.03.22"]
[WhiteClock "0:00:56"]
[BlackClock "0:01:04"]

1. e4 {[%clk 0:03:00]}  e6 {[%clk 0:02:59]} 2. d4 {[%clk 0:02:57]}  d5 {[%clk 0:03:00]} 3. Nc3 {[%clk 0:02:54]}  Bb4 {[%clk 0:02:59]} 4. e5 {[%clk 0:02:54]}  c5 {[%clk 0:02:59]} 5. a3 {[%clk 0:02:54]}  Bxc3+ {[%clk 0:03:00]} 6. bxc3 {[%clk 0:02:54]}  Ne7 {[%clk 0:03:01]} 7. Nf3 {[%clk 0:02:52]}  h6 {[%clk 0:03:00]} 8. a4 {[%clk 0:02:51]}  Qc7 {[%clk 0:02:59]} 9. Bb5+ {[%clk 0:02:47]}  Bd7 {[%clk 0:02:58]} 10. Bxd7+ {[%clk 0:02:46]}  Nxd7 {[%clk 0:02:57]} 11. O-O {[%clk 0:02:46]}  O-O {[%clk 0:02:57]} 12. Ba3 {[%clk 0:02:43]}  Nc6 {[%clk 0:02:40]} 13. Nd2 {[%clk 0:02:39]}  Rfc8 {[%clk 0:02:38]} 14. Nb3 {[%clk 0:02:36]}  cxd4 {[%clk 0:02:35]} 15. cxd4 {[%clk 0:02:33]}  Na5 {[%clk 0:02:29]} 16. Bd6 {[%clk 0:02:32]}  Qd8 {[%clk 0:02:28]} 17. f4 {[%clk 0:02:30]}  Nc4 {[%clk 0:02:20]} 18. Qd3 {[%clk 0:02:29]}  Nxd6 {[%clk 0:02:19]} 19. exd6 {[%clk 0:02:28]}  Nf6 {[%clk 0:02:20]} 20. f5 {[%clk 0:02:18]}  Qxd6 {[%clk 0:02:18]} 21. fxe6 {[%clk 0:02:18]}  Qxe6 {[%clk 0:02:15]} 22. Nc5 {[%clk 0:02:18]}  Qc6 {[%clk 0:02:09]} 23. a5 {[%clk 0:02:17]}  b6 {[%clk 0:02:09]} 24. Nb3 {[%clk 0:02:08]}  Ne4 {[%clk 0:02:03]} 25. Qf3 {[%clk 0:02:02]}  Qe6 {[%clk 0:01:59]} 26. Qe3 {[%clk 0:01:52]}  Rxc2 {[%clk 0:01:56]} 27. axb6 {[%clk 0:01:46]}  Qxb6 {[%clk 0:01:55]} 28. Ra5 {[%clk 0:01:35]}  Rc3 {[%clk 0:01:49]} 29. Qf4 {[%clk 0:01:30]}  Rxb3 {[%clk 0:01:39]} 30. Qxf7+ {[%clk 0:01:29]}  Kh8 {[%clk 0:01:40]} 31. Rxd5 {[%clk 0:01:25]}  Rb1 {[%clk 0:01:34]} 32. Rd7 {[%clk 0:01:08]}  Rxf1+ {[%clk 0:01:32]} 33. Qxf1 {[%clk 0:01:09]}  Nf6 {[%clk 0:01:29]} 34. Rf7 {[%clk 0:01:04]}  Qxd4+ {[%clk 0:01:28]} 35. Kh1 {[%clk 0:01:04]}  Rd8 {[%clk 0:01:28]} 36. h3 {[%clk 0:01:02]}  Qd1 {[%clk 0:01:27]} 37. Qxd1 {[%clk 0:01:02]}  Rxd1+ {[%clk 0:01:27]} 38. Kh2 {[%clk 0:01:03]}  a5 {[%clk 0:01:26]} 39. Ra7 {[%clk 0:01:00]}  Rd5 {[%clk 0:01:25]} 40. g4 {[%clk 0:00:59]}  g5 {[%clk 0:01:16]} 41. Kg3 {[%clk 0:00:58]}  Kg8 {[%clk 0:01:15]} 42. Kf3 {[%clk 0:00:58]}  Re5 {[%clk 0:01:15]} 43. Ra6 {[%clk 0:00:58]}  Kf7 {[%clk 0:01:14]} 44. Ra7+ {[%clk 0:00:58]}  Kg6 {[%clk 0:01:10]} 45. Ra6 {[%clk 0:00:59]}  Rb5 {[%clk 0:01:09]} 46. Ke3 {[%clk 0:00:59]}  Rb3+ {[%clk 0:01:09]} 47. Kd4 {[%clk 0:00:59]}  Rxh3 {[%clk 0:01:09]} 48. Ke5 {[%clk 0:00:57]}  Re3+ {[%clk 0:01:09]} 49. Kd4 {[%clk 0:00:57]}  Re8 {[%clk 0:01:04]} 50. Rxa5 {[%clk 0:00:56]}  Re4+ {[%clk 0:01:03]} 51. Kd3 {[%clk 0:00:56]}  Rxg4 {[%clk 0:01:04]} 0-1


[Site "https://www.chess.com"]

[Event "Titled Tuesday Blitz March 22 Late 2022"]
[White "Ladan, Nicholas"]
[Black "Broca Jimenez, Fernando"]
[WhiteFideId "30918855"]
[BlackFideId "5104742"]
[WhiteElo "2167"]
[BlackElo "2062"]
[Result "1-0"]
[Round "04"]
[TimeControl "180+1"]
[Date "2022.03.22"]
[WhiteClock "0:00:22"]
[BlackClock "0:00:01"]

1. d4 {[%clk 0:03:00]}  Nf6 {[%clk 0:02:58]} 2. Bf4 {[%clk 0:02:58]}  g6 {[%clk 0:02:52]} 3. Nf3 {[%clk 0:02:58]}  Bg7 {[%clk 0:02:52]} 4. Nc3 {[%clk 0:02:58]}  O-O {[%clk 0:02:48]} 5. e4 {[%clk 0:02:57]}  d6 {[%clk 0:02:48]} 6. Qd2 {[%clk 0:02:55]}  c5 {[%clk 0:02:39]} 7. dxc5 {[%clk 0:02:22]}  dxc5 {[%clk 0:02:35]} 8. O-O-O {[%clk 0:02:22]}  Qxd2+ {[%clk 0:02:27]} 9. Nxd2 {[%clk 0:02:19]}  Nc6 {[%clk 0:02:26]} 10. f3 {[%clk 0:02:19]}  Be6 {[%clk 0:02:19]} 11. Bc4 {[%clk 0:02:18]}  Nd4 {[%clk 0:02:05]} 12. Be5 {[%clk 0:02:09]}  Rfd8 {[%clk 0:01:48]} 13. g4 {[%clk 0:01:54]}  Bxc4 {[%clk 0:01:26]} 14. Nxc4 {[%clk 0:01:51]}  Nxf3 {[%clk 0:01:26]} 15. Bxf6 {[%clk 0:01:51]}  Bxf6 {[%clk 0:01:22]} 16. Nd5 {[%clk 0:01:51]}  Bg5+ {[%clk 0:01:16]} 17. Kb1 {[%clk 0:01:49]}  e6 {[%clk 0:01:16]} 18. Nc7 {[%clk 0:01:25]}  Rac8 {[%clk 0:01:10]} 19. Nb5 {[%clk 0:01:22]}  a6 {[%clk 0:00:54]} 20. Nbd6 {[%clk 0:01:18]}  Rc7 {[%clk 0:00:52]} 21. a4 {[%clk 0:01:14]}  Rcd7 {[%clk 0:00:43]} 22. Rd3 {[%clk 0:01:02]}  Nd2+ {[%clk 0:00:29]} 23. Nxd2 {[%clk 0:00:56]}  Rxd6 {[%clk 0:00:29]} 24. Nf3 {[%clk 0:00:51]}  Rxd3 {[%clk 0:00:22]} 25. cxd3 {[%clk 0:00:50]}  Bf6 {[%clk 0:00:21]} 26. Kc2 {[%clk 0:00:48]}  Kf8 {[%clk 0:00:16]} 27. g5 {[%clk 0:00:46]}  Bg7 {[%clk 0:00:16]} 28. h4 {[%clk 0:00:46]}  Ke7 {[%clk 0:00:16]} 29. h5 {[%clk 0:00:43]}  Rh8 {[%clk 0:00:14]} 30. h6 {[%clk 0:00:40]}  Bd4 {[%clk 0:00:14]} 31. Kb3 {[%clk 0:00:30]}  Rd8 {[%clk 0:00:13]} 32. Kc4 {[%clk 0:00:30]}  Rd6 {[%clk 0:00:04]} 33. b4 {[%clk 0:00:27]}  e5 {[%clk 0:00:03]} 34. bxc5 {[%clk 0:00:25]}  Rc6 {[%clk 0:00:03]} 35. Nxd4 {[%clk 0:00:25]}  exd4 {[%clk 0:00:03]} 36. Kxd4 {[%clk 0:00:26]}  Ke6 {[%clk 0:00:03]} 37. Rf1 {[%clk 0:00:25]}  Rc7 {[%clk 0:00:02]} 38. Rf6+ {[%clk 0:00:25]}  Ke7 {[%clk 0:00:01]} 39. Rd6 {[%clk 0:00:23]}  Rc8 {[%clk 0:00:01]} 40. e5 {[%clk 0:00:22]} 1-0


[Site "https://www.chess.com"]

[Event "Titled Tuesday Blitz March 22 Late 2022"]
[White "Marcziter, Dmitrii"]
[Black "Urbina Perez, Juan Antonio"]
[WhiteFideId "13900765"]
[BlackFideId "2217368"]
[WhiteElo "2155"]
[BlackElo "2192"]
[Result "1-0"]
[Round "04"]
[TimeControl "180+1"]
[Date "2022.03.22"]
[WhiteClock "0:01:25"]
[BlackClock "0:01:15"]

1. d4 {[%clk 0:03:00]}  d5 {[%clk 0:02:58]} 2. c4 {[%clk 0:03:00]}  c6 {[%clk 0:02:57]} 3. Nf3 {[%clk 0:03:00]}  Nf6 {[%clk 0:02:57]} 4. Nc3 {[%clk 0:03:01]}  a6 {[%clk 0:02:58]} 5. c5 {[%clk 0:03:00]}  Bf5 {[%clk 0:02:57]} 6. Bf4 {[%clk 0:02:58]}  e6 {[%clk 0:02:57]} 7. h3 {[%clk 0:02:58]}  Be7 {[%clk 0:02:57]} 8. Nh4 {[%clk 0:02:55]}  O-O {[%clk 0:02:57]} 9. Nxf5 {[%clk 0:02:55]}  exf5 {[%clk 0:02:58]} 10. e3 {[%clk 0:02:55]}  Re8 {[%clk 0:02:58]} 11. Bd3 {[%clk 0:02:54]}  g6 {[%clk 0:02:54]} 12. O-O {[%clk 0:02:53]}  Ne4 {[%clk 0:02:54]} 13. Na4 {[%clk 0:02:49]}  Nd7 {[%clk 0:02:52]} 14. f3 {[%clk 0:02:48]}  Nef6 {[%clk 0:02:51]} 15. Nc3 {[%clk 0:02:47]}  Qc8 {[%clk 0:02:48]} 16. Qd2 {[%clk 0:02:44]}  Bd8 {[%clk 0:02:48]} 17. g4 {[%clk 0:02:39]}  fxg4 {[%clk 0:02:35]} 18. hxg4 {[%clk 0:02:39]}  h5 {[%clk 0:02:23]} 19. g5 {[%clk 0:02:35]}  Nh7 {[%clk 0:02:22]} 20. Qg2 {[%clk 0:02:32]}  Ndf8 {[%clk 0:02:19]} 21. Rae1 {[%clk 0:02:21]}  Ne6 {[%clk 0:02:13]} 22. Be5 {[%clk 0:02:20]}  Nexg5 {[%clk 0:02:05]} 23. f4 {[%clk 0:02:20]}  Rxe5 {[%clk 0:01:54]} 24. dxe5 {[%clk 0:02:18]}  Ne4 {[%clk 0:01:46]} 25. Nxe4 {[%clk 0:02:13]}  dxe4 {[%clk 0:01:47]} 26. Bxe4 {[%clk 0:02:13]}  Be7 {[%clk 0:01:46]} 27. b4 {[%clk 0:02:11]}  a5 {[%clk 0:01:45]} 28. a3 {[%clk 0:02:03]}  axb4 {[%clk 0:01:45]} 29. axb4 {[%clk 0:02:03]}  Ra3 {[%clk 0:01:46]} 30. f5 {[%clk 0:01:59]}  g5 {[%clk 0:01:45]} 31. f6 {[%clk 0:01:55]}  Bf8 {[%clk 0:01:45]} 32. Bxh7+ {[%clk 0:01:53]}  Kxh7 {[%clk 0:01:45]} 33. Qxg5 {[%clk 0:01:53]}  Qh3 {[%clk 0:01:39]} 34. Qf5+ {[%clk 0:01:52]}  Qxf5 {[%clk 0:01:38]} 35. Rxf5 {[%clk 0:01:52]}  Kg6 {[%clk 0:01:39]} 36. Rf4 {[%clk 0:01:50]}  Bh6 {[%clk 0:01:38]} 37. Rf3 {[%clk 0:01:48]}  Rb3 {[%clk 0:01:37]} 38. Kh2 {[%clk 0:01:44]}  Rxb4 {[%clk 0:01:36]} 39. Rg1+ {[%clk 0:01:45]}  Kh7 {[%clk 0:01:36]} 40. e6 {[%clk 0:01:42]}  fxe6 {[%clk 0:01:35]} 41. f7 {[%clk 0:01:42]}  Bf8 {[%clk 0:01:33]} 42. Rg8 {[%clk 0:01:41]}  Bxc5 {[%clk 0:01:33]} 43. f8=Q {[%clk 0:01:40]}  Bxf8 {[%clk 0:01:33]} 44. Rgxf8 {[%clk 0:01:40]}  b5 {[%clk 0:01:30]} 45. R8f6 {[%clk 0:01:39]}  Rc4 {[%clk 0:01:29]} 46. Rxe6 {[%clk 0:01:39]}  b4 {[%clk 0:01:29]} 47. Rf4 {[%clk 0:01:37]}  Rc2+ {[%clk 0:01:28]} 48. Kg3 {[%clk 0:01:35]}  b3 {[%clk 0:01:28]} 49. Rb4 {[%clk 0:01:34]}  b2 {[%clk 0:01:27]} 50. Re7+ {[%clk 0:01:35]}  Kg6 {[%clk 0:01:25]} 51. Reb7 {[%clk 0:01:35]}  Rc3 {[%clk 0:01:24]} 52. Kf3 {[%clk 0:01:34]}  h4 {[%clk 0:01:20]} 53. Rxh4 {[%clk 0:01:32]}  c5 {[%clk 0:01:15]} 54. Rxb2 {[%clk 0:01:29]}  Rc1 {[%clk 0:01:16]} 55. Rg2+ {[%clk 0:01:28]}  Kf5 {[%clk 0:01:16]} 56. Rh5+ {[%clk 0:01:27]}  Ke6 {[%clk 0:01:16]} 57. Rg6+ {[%clk 0:01:26]}  Kf7 {[%clk 0:01:16]} 58. Rc6 {[%clk 0:01:26]}  Rf1+ {[%clk 0:01:15]} 59. Ke2 {[%clk 0:01:25]}  Rc1 {[%clk 0:01:15]} 60. Rhxc5 {[%clk 0:01:25]} 1-0


[Site "https://www.chess.com"]

[Event "Titled Tuesday Blitz March 22 Late 2022"]
[White "Martin Carmona, Gaston Manuel"]
[Black "Lauridsen, Jesper Morch"]
[WhiteFideId "22284567"]
[BlackFideId "1401890"]
[WhiteElo "2161"]
[BlackElo "2268"]
[Result "1-0"]
[Round "04"]
[TimeControl "180+1"]
[Date "2022.03.22"]
[WhiteClock "0:00:34"]
[BlackClock "0:00:01"]

1. d4 {[%clk 0:03:00]}  Nf6 {[%clk 0:02:58]} 2. c4 {[%clk 0:03:00]}  e6 {[%clk 0:02:58]} 3. Nf3 {[%clk 0:02:59]}  c5 {[%clk 0:02:58]} 4. g3 {[%clk 0:02:57]}  g6 {[%clk 0:02:55]} 5. Bg2 {[%clk 0:02:56]}  Bg7 {[%clk 0:02:54]} 6. Nc3 {[%clk 0:02:56]}  O-O {[%clk 0:02:50]} 7. O-O {[%clk 0:02:55]}  cxd4 {[%clk 0:02:34]} 8. Nxd4 {[%clk 0:02:56]}  Nc6 {[%clk 0:02:31]} 9. Nc2 {[%clk 0:02:48]}  b6 {[%clk 0:02:13]} 10. b3 {[%clk 0:02:47]}  Bb7 {[%clk 0:02:02]} 11. Ba3 {[%clk 0:02:42]}  Re8 {[%clk 0:02:00]} 12. Bd6 {[%clk 0:02:43]}  Na5 {[%clk 0:01:50]} 13. Qd3 {[%clk 0:02:36]}  Bxg2 {[%clk 0:01:47]} 14. Kxg2 {[%clk 0:02:37]}  Nb7 {[%clk 0:01:47]} 15. Be5 {[%clk 0:02:37]}  d6 {[%clk 0:01:44]} 16. Bxf6 {[%clk 0:02:25]}  Qxf6 {[%clk 0:01:40]} 17. Ne4 {[%clk 0:02:21]}  Qe5 {[%clk 0:01:36]} 18. Rad1 {[%clk 0:02:20]}  Rad8 {[%clk 0:01:34]} 19. Ne3 {[%clk 0:02:08]}  Nc5 {[%clk 0:01:24]} 20. Nxc5 {[%clk 0:02:08]}  Qxc5 {[%clk 0:01:25]} 21. h4 {[%clk 0:02:04]}  Qc6+ {[%clk 0:01:14]} 22. f3 {[%clk 0:02:01]}  Be5 {[%clk 0:01:07]} 23. h5 {[%clk 0:01:59]}  d5 {[%clk 0:01:04]} 24. cxd5 {[%clk 0:01:57]}  exd5 {[%clk 0:01:03]} 25. Nxd5 {[%clk 0:01:48]}  Kg7 {[%clk 0:00:40]} 26. e4 {[%clk 0:01:44]}  gxh5 {[%clk 0:00:32]} 27. Rh1 {[%clk 0:01:41]}  Qg6 {[%clk 0:00:31]} 28. f4 {[%clk 0:01:40]}  Bxf4 {[%clk 0:00:30]} 29. Qc3+ {[%clk 0:01:27]}  Be5 {[%clk 0:00:28]} 30. Qf3 {[%clk 0:01:24]}  Rc8 {[%clk 0:00:18]} 31. Rd2 {[%clk 0:01:20]}  Bd6 {[%clk 0:00:14]} 32. Re2 {[%clk 0:01:09]}  Qg4 {[%clk 0:00:11]} 33. Rh4 {[%clk 0:01:05]}  Qxf3+ {[%clk 0:00:10]} 34. Kxf3 {[%clk 0:01:06]}  Rc1 {[%clk 0:00:09]} 35. Rxh5 {[%clk 0:01:05]}  Rf1+ {[%clk 0:00:08]} 36. Kg2 {[%clk 0:01:05]}  Rd1 {[%clk 0:00:06]} 37. Nc3 {[%clk 0:00:47]}  Rd3 {[%clk 0:00:06]} 38. Nd5 {[%clk 0:00:42]}  Rxg3+ {[%clk 0:00:04]} 39. Kf2 {[%clk 0:00:43]}  Rg6 {[%clk 0:00:03]} 40. Rf5 {[%clk 0:00:43]}  Bc5+ {[%clk 0:00:03]} 41. Kf3 {[%clk 0:00:42]}  h6 {[%clk 0:00:03]} 42. Rg2 {[%clk 0:00:42]}  Rxg2 {[%clk 0:00:02]} 43. Kxg2 {[%clk 0:00:43]}  Rxe4 {[%clk 0:00:02]} 44. Kf3 {[%clk 0:00:44]}  Re6 {[%clk 0:00:02]} 45. Rh5 {[%clk 0:00:42]}  Rg6 {[%clk 0:00:02]} 46. Nf4 {[%clk 0:00:40]}  Rg5 {[%clk 0:00:02]} 47. Rh1 {[%clk 0:00:40]}  Rf5 {[%clk 0:00:02]} 48. Ke4 {[%clk 0:00:41]}  Rg5 {[%clk 0:00:01]} 49. Rh2 {[%clk 0:00:41]}  Rg4 {[%clk 0:00:01]} 50. Rd2 {[%clk 0:00:34]} 1-0


[Site "https://www.chess.com"]

[Event "Titled Tuesday Blitz March 22 Late 2022"]
[White "Martinez Alcantara, Jose Eduardo"]
[Black "Wieczorek, Oskar"]
[WhiteFideId "3805662"]
[BlackFideId "1133950"]
[WhiteElo "2690"]
[BlackElo "2319"]
[Result "1-0"]
[Round "04"]
[TimeControl "180+1"]
[Date "2022.03.22"]
[WhiteClock "0:01:24"]
[BlackClock "0:00:26"]

1. e4 {[%clk 0:02:58]}  c5 {[%clk 0:02:58]} 2. Nf3 {[%clk 0:02:58]}  g6 {[%clk 0:02:58]} 3. Bc4 {[%clk 0:02:56]}  Bg7 {[%clk 0:02:57]} 4. d3 {[%clk 0:02:57]}  Nc6 {[%clk 0:02:56]} 5. O-O {[%clk 0:02:57]}  e6 {[%clk 0:02:56]} 6. Nc3 {[%clk 0:02:57]}  Nge7 {[%clk 0:02:56]} 7. a3 {[%clk 0:02:58]}  b6 {[%clk 0:02:52]} 8. Ba2 {[%clk 0:02:58]}  Bb7 {[%clk 0:02:52]} 9. Bf4 {[%clk 0:02:58]}  d6 {[%clk 0:02:49]} 10. Qd2 {[%clk 0:02:56]}  h6 {[%clk 0:02:49]} 11. h3 {[%clk 0:02:56]}  g5 {[%clk 0:02:49]} 12. Bg3 {[%clk 0:02:56]}  Ng6 {[%clk 0:02:42]} 13. Rae1 {[%clk 0:02:56]}  a6 {[%clk 0:02:34]} 14. Ne2 {[%clk 0:02:45]}  Nce5 {[%clk 0:02:29]} 15. Nh2 {[%clk 0:02:26]}  h5 {[%clk 0:02:22]} 16. f3 {[%clk 0:02:20]}  Bh6 {[%clk 0:02:00]} 17. Qd1 {[%clk 0:02:20]}  Qf6 {[%clk 0:01:49]} 18. Kh1 {[%clk 0:02:01]}  Nf4 {[%clk 0:01:45]} 19. Nxf4 {[%clk 0:02:01]}  gxf4 {[%clk 0:01:45]} 20. Bf2 {[%clk 0:02:02]}  b5 {[%clk 0:01:12]} 21. d4 {[%clk 0:01:59]}  cxd4 {[%clk 0:01:13]} 22. Qxd4 {[%clk 0:01:59]}  Qe7 {[%clk 0:01:07]} 23. Rd1 {[%clk 0:01:58]}  Rd8 {[%clk 0:01:07]} 24. Rg1 {[%clk 0:01:50]}  Bg5 {[%clk 0:01:02]} 25. c4 {[%clk 0:01:33]}  bxc4 {[%clk 0:00:55]} 26. Bxc4 {[%clk 0:01:30]}  Bf6 {[%clk 0:00:54]} 27. Be2 {[%clk 0:01:31]}  Kf8 {[%clk 0:00:34]} 28. Qd2 {[%clk 0:01:29]}  Ng6 {[%clk 0:00:26]} 29. b4 {[%clk 0:01:26]}  d5 {[%clk 0:00:26]} 30. Bc5 {[%clk 0:01:24]} 1-0


[Site "https://www.chess.com"]